Workbook

Sheet Sheet1
F7: √ ή -- | H7: Είδος ελέγχου
H8: Τακτικός
H9: Επανέλεγχος
H10: Καταγγελία
H11: RASFF
E12: Ημερομηνία προηγούμενου ελέγχου:
E13: Ημερομηνία & ώρα ελέγχου:
B15: ΕΝΤΥΠΟ ΕΛΕΓΧΟΥ ΕΓΚΑΤΑΣΤΑΣΕΩΝ ΑΡΤΟΠΟΙΪΑΣ-ΖΑΧΑΡΟΠΛΑΣΤΙΚΗΣ
A16: Α | B16: ΣΤΟΙΧΕΙΑ ΕΠΙΧΕΙΡΗΣΗΣ
A17: 1 | B17: Επωνυμία
A18: 2 | B18: Διεύθυνση
A19: 3 | B19: Τηλ. – Fax
A20: 4 | B20: E-mail
A21: 5 | B21: Ονοματεπώνυμο ιδιοκτήτη
A22: 6 | B22: ΑΦΜ / Δ.Ο.Υ.
A23: 7 | B23: Ονοματεπώνυμο νόμιμου εκπροσώπου
A24: 8 | B24: Αρθμός Γνωστοποίησης / Ημερομηνία Υποβολής
A25: Β | B25: ΔΡΑΣΤΗΡΙΟΤΗΤΑ-ΠΡΟΪΟΝΤΑ
A26: 1 | B26: Παραγωγή | F26: ΠΕΡΙΓΡΑΦΗ
A27: 1.1 | B27: Άρτος-αρτίδια
A28: 1.2. | B28: Αρτοσκευάσματα
A29: 1.3 | B29: Ζύμες - πίτες νωπές ή κατεψυγμένες
A30: 1.4 | B30: Πάστες - γλυκά (π.χ. τιραμισού, μιλφέιγ)
A31: 1.5 | B31: Παγωτά και κατεψυγμένα γλυκά
A32: 1.6 | B32: Επιδόρπια και κεράσματα (π.χ. ρυζόγαλο, φρουτοζελέ, αμυγδαλωτά, καριόκες)
A33: 1.7 | B33: Γλυκά ταψιού - σιροπιαστά
B34: ΠΡΟΣΘΕΤΑ ΣΤΟΙΧΕΙΑ
A35: 1 | B35: Δυναμικότητα - Όγκος παραγόμενων προϊόντων (μηνιαία ή ετήσια παραγωγή)
A36: 2 | B36: Εξαγωγική δραστηριότητα & όγκος % ετήσιας παραγωγής
A37: 3 | B37: Αριθμός εργαζομένων
A38: ΚΕΦΑΛΑΙΟ 1: ΣΥΣΤΗΜΑΤΑ ΚΑΙ ΔΙΑΔΙΚΑΣΙΕΣ
A39: Α | B39: ΣΥΣΤΗΜΑ ΑΥΤΟΕΛΕΓΧΟΥ | F39: ΝΑΙ (Συμμόρφωση) | G39: ΜΕΡΙΚΗ ΣΥΜΜΟΡΦΩΣΗ | I39: ΟΧΙ (μη συμμόρφωση) | K39: Δεν εφαρμόζεται | M39: ΒΑΘΜΟΛΟΓΙΑ
A40: 1 | B40: Διαγράμματα ροής ή περιγραφή ροής για όλα τα προϊόντα ή κατηγορίες προϊόντων. | F40: 0 | G40: 9 | I40: 18 | K40: 0
A41: 2 | B41: Επιβεβαιώνεται στην πράξη το κάθε διάγραμμα ροής. | F41: 0 | G41: 6 | I41: 12 | K41: 0
A42: 3 | B42: Για κάθε προϊόν ή κατηγορία προϊόντων υφίσταται ανάλυση δυνητικών κινδύνων και έχουν εντοπισθεί κρίσιμα σημεία ελέγχου (ΚΣΕ). | F42: 0 | G42: 9 | I42: 18 | K42: 0
A43: 4 | B43: Έχουν προσδιορισθεί κρίσιμα όρια για κάθε ΚΣΕ. | F43: 0 | G43: 9 | I43: 18 | K43: 0
A44: 5 | B44: Υπάρχει διαδικασία παρακολούθησης για κάθε ΚΣΕ. | F44: 0 | G44: 9 | I44: 18 | K44: 0
A45: 6 | B45: Έχουν καθοριστεί οι απαραίτητες διορθωτικές ενέργειες για κάθε ΚΣΕ. | F45: 0 | G45: 6 | I45: 12 | K45: 0
A46: 7 | B46: Εφαρμόζονται διαδικασίες επαλήθευσης και επικύρωσης. | F46: 0 | G46: 6 | I46: 12 | K46: 0
A47: 8 | B47: Τεκμηριώνεται η εφαρμογή των διαδικασιών του συστήματος αυτοελέγχου. | F47: 0 | G47: 6 | I47: 12 | K47: 0
B48: Εφαρμογή συστήματος HACCP/αξιοποίηση δυνατότητας ευελιξίας | F48: Πλήρες HACCP Ευελιξία
A49: Β | B49: ΚΑΘΑΡΙΣΜΟΣ - ΑΠΟΛΥΜΑΝΣΗ | F49: ΝΑΙ (Συμμόρφωση) | G49: ΜΕΡΙΚΗ ΣΥΜΜΟΡΦΩΣΗ | I49: ΟΧΙ (μη συμμόρφωση) | K49: Δεν εφαρμόζεται | M49: ΒΑΘΜΟΛΟΓΙΑ
A50: 9 | B50: Εφαρμόζεται πρόγραμμα καθαρισμού και απολύμανσης χώρων, εξοπλισμού και μέσων. | F50: 0 | G50: 6 | I50: 12 | K50: 0
A51: 10 | B51: Τα υλικά καθαρισμού και απολύμανσης είναι κατάλληλα για τρόφιμα και ασφαλή υπό τις συνθήκες χρήσης τους. | F51: 0 | G51: 6 | I51: 12 | K51: 0
A52: 11 | B52: Τα υλικά καθαρισμού – απολύμανσης αποθηκεύονται σε διακριτό χώρο. | F52: 0 | G52: 3 | I52: 6 | K52: 0
A53: 12 | B53: Γίνεται έλεγχος της αποτελεσματικότητας του καθαρισμού και απολύμανσης. | F53: 0 | G53: 3 | I53: 6 | K53: 0
A54: 13 | B54: Τεκμηριώνεται η εφαρμογή προγράμματος καθαρισμού και απολύμανσης. | F54: 0 | G54: 3 | I54: 6 | K54: 0
A55: Γ | B55: ΠΡΟΓΡΑΜΜΑ ΕΛΕΓΧΟΥ ΕΠΙΒΛΑΒΩΝ ΟΡΓΑΝΙΣΜΩΝ | F55: ΝΑΙ (Συμμόρφωση) | G55: ΜΕΡΙΚΗ ΣΥΜΜΟΡΦΩΣΗ | I55: ΟΧΙ (μη συμμόρφωση) | K55: Δεν εφαρμόζεται | M55: ΣΧΟΛΙΑ
A56: 14 | B56: Εφαρμογή προγράμματος ελέγχου επιβλαβών οργανισμών. | F56: 0 | G56: 9 | I56: 18 | K56: 0
A57: 15 | B57: Εφαρμόζεται καθαρισμός και υποκαπνισμός σε σιλό με συχνότητα που καθορίζεται από τις ανάγκες της επιχείρησης. | F57: 0 | G57: 9 | I57: 18 | K57: 0
A58: 16 | B58: Τεκμηριώνεται η εφαρμογή προγράμματος ελέγχου επιβλαβών οργανισμών. | F58: 0 | G58: 6 | I58: 12 | K58: 0
A59: Δ | B59: ΕΚΠΑΙΔΕΥΣΗ ΠΡΟΣΩΠΙΚΟΥ | F59: ΝΑΙ (Συμμόρφωση) | G59: ΜΕΡΙΚΗ ΣΥΜΜΟΡΦΩΣΗ | I59: ΟΧΙ (μη συμμόρφωση) | K59: Δεν εφαρμόζεται | M59: ΒΑΘΜΟΛΟΓΙΑ
A60: 17 | B60: Οι χειριστές τροφίμων και το προσωπικό εκπαιδεύονται σε θέματα ορθών πρακτικών υγιεινής και ασφάλειας τροφίμων και σε θέματα ειδικά με τις εκτελούμενες εργασίες. | F60: 0 | G60: 6 | I60: 12 | K60: 0
A61: 18 | B61: Τεκμηρίωση προγράμματος εκπαίδευσης προσωπικού. | F61: 0 | G61: 3 | I61: 6 | K61: 0
A62: Ε | B62: ΣΥΣΤΗΜΑ ΥΔΡΕΥΣΗΣ - ΕΛΕΓΧΟΣ ΝΕΡΟΥ | F62: ΝΑΙ (Συμμόρφωση) | G62: ΜΕΡΙΚΗ ΣΥΜΜΟΡΦΩΣΗ | I62: ΟΧΙ (μη συμμόρφωση) | K62: Δεν εφαρμόζεται | M62: ΒΑΘΜΟΛΟΓΙΑ
A63: 19 | B63: Το νερό που προέρχεται από ιδιωτική πηγή για χρήση στις διαδικασίες παραγωγής τροφίμων, συμπεριλαμβανομένων του πάγου και του ατμού σε επαφή με τρόφιμα, έχει καταστεί πόσιμο λαμβάνοντας κατάλληλα μέτρα. | F63: 0 | G63: 6 | I63: 12 | K63: 0
A64: 20 | B64: Περιοδικός έλεγχος μικροβιολογικών και φυσικοχημικών παραμέτρων του νερού που προέρχεται από ιδιωτική πηγή και ύπαρξη αντίστοιχης τεκμηρίωσης. | F64: 0 | G64: 6 | I64: 12 | K64: 0
A65: 21 | B65: Η παραγωγή, διαχείριση και αποθήκευση του πάγου γίνεται υπό υγιεινές συνθήκες. | F65: 0 | G65: 6 | I65: 12 | K65: 0
A66: 22 | B66: Οι αγωγοί διανομής μη πόσιμου νερού για παραγωγή ατμού, ψύξη και καθαρισμό εξοπλισμού που δεν έρχεται σε επαφή με τρόφιμα, διακρίνονται εύκολα και σαφώς από εκείνους του πόσιμου νερού. | F66: 0 | G66: 3 | I66: 6 | K66: 0
B67: Προσδιορισμός προέλευσης πόσιμου νερού (δημόσιο δίκτυο ύδρευσης- γεώτρηση) | D67: Δημόσιο δίκτυο | F67: Profile εγκατάστασης- δε βαθμολογείται
D68: Ιδία πηγή (π.χ γεώτρηση) | F68: Profile εγκατάστασης- δε βαθμολογείται
B69: ΣΥΝΟΛΟ ΚΕΦΑΛΑΙΟΥ 1 | I69: =SUM(I40:I66) -> 270 | M69: =SUM(M40:O66) -> 0
I70: 0.7 | K70: 0.399 | M70: =IF(M69>=I71,"HIGH RISK",IF(M69<=K71,"LOW RISK","MEDIUM RISK")) -> LOW RISK
I71: =70%*I69 -> 189 | K71: =39.9%*I69 -> 107.73
A72: ΚΕΦΑΛΑΙΟ 2: ΙΧΝΗΛΑΣΙΜΟΤΗΤΑ
F73: ΝΑΙ (Συμμόρφωση) | G73: ΜΕΡΙΚΗ ΣΥΜΜΟΡΦΩΣΗ | I73: ΟΧΙ (μη συμμόρφωση) | K73: Δεν εφαρμόζεται | M73: ΒΑΘΜΟΛΟΓΙΑ
A74: 23 | B74: Πληρούνται οι γενικές απαιτήσεις ιχνηλασιμότητας. | F74: 0 | G74: 9 | I74: 18 | K74: 0
A75: 24 | B75: Πληρούνται οι ειδικές απαιτήσεις ιχνηλασιμότητας για πρώτες ύλες ζωικής προέλευσης μεταποιημένες ή μη. | F75: 0 | G75: 6 | I75: 12 | K75: 0
A76: 25 | B76: Τεκμηριώνεται η εφαρμογή συστήματος ιχνηλασιμότητας. | F76: 0 | G76: 6 | I76: 12 | K76: 0
A77: 26 | B77: Σύστημα εσωτερικής ιχνηλασιμότητας για επεξεργασία ή και παραγωγή ενδιάμεσων και τελικών προϊόντων, συμπεριλαμβανομένων όσων επαναχρησιμοποιούνται τμηματικά σε επόμενες παρτίδες παραγωγής ή υποβάλλονται σε άλλη επεξεργασία ή προωθούνται ως υποπροϊόντα για άλλες χρήσεις. | F77: 0 | G77: 3 | I77: 6 | K77: 0
A78: 27 | B78: Υφίσταται σύστημα απόσυρσης-ανάκλησης με αποτελεσματικές και ακριβείς διαδικασίες. | F78: 0 | G78: 9 | I78: 18 | K78: 0
B79: ΣΥΝΟΛΟ ΚΕΦΑΛΑΙΟΥ 2 | I79: =SUM(I74:J78) -> 66 | M79: =SUM(M74:O78) -> 0
I80: 0.7 | K80: 0.399 | M80: =IF(M79>=I81,"HIGH RISK",IF(M79<=K81,"LOW RISK","MEDIUM RISK")) -> LOW RISK
I81: =70%*I79 -> 46.2 | K81: =39.9%*I79 -> 26.334
A82: ΚΕΦΑΛΑΙΟ 3: ΕΛΕΓΧΟΣ ΓΡΑΜΜΗΣ ΠΑΡΑΓΩΓΗΣ ΚΑΙ ΔΙΑΔΙΚΑΣΙΩΝ
A83: Α | B83: ΠΑΡΑΛΑΒΗ ΠΡΩΤΩΝ ΥΛΩΝ - ΕΠΙΣΤΡΕΦΟΜΕΝΩΝ ΠΡΟΪΟΝΤΩΝ | F83: ΝΑΙ (Συμμόρφωση) | G83: ΜΕΡΙΚΗ ΣΥΜΜΟΡΦΩΣΗ | I83: ΟΧΙ (μη συμμόρφωση) | K83: Δεν εφαρμόζεται | M83: ΒΑΘΜΟΛΟΓΙΑ
A84: 28 | B84: Έλεγχος εισερχόμενων πρώτων υλών από εγκεκριμένους προμηθευτές με ύπαρξη σχετικής τεκμηρίωσης: - ενδείξεις μόλυνσης ή προσβολής από έντομα ή τρωκτικά και μικροοργανισμούς, - ακεραιότητα συσκευασίας, - όπου απαιτείται, θερμοκρασία προϊόντων - ημερομηνία λήξης προϊόντος, - όπου χρειάζεται, συνοδευτικό πιστοποιητικό. | F84: 0 | G84: 9 | I84: 18 | K84: 0
A85: Β | B85: ΑΠΟΘΗΚΕΥΣΗ ΠΡΩΤΩΝ ΥΛΩΝ - ΤΕΛΙΚΩΝ ΠΡΟΪΟΝΤΩΝ | F85: ΝΑΙ (Συμμόρφωση) | G85: ΜΕΡΙΚΗ ΣΥΜΜΟΡΦΩΣΗ | I85: ΟΧΙ (μη συμμόρφωση) | K85: Δεν εφαρμόζεται | M85: ΒΑΘΜΟΛΟΓΙΑ
A86: 29 | B86: Προβλέπεται αποθήκευση πρώτων υλών, τελικών προϊόντων, ακατάλληλων τροφίμων και αλλεργιογόνων είτε σε ξεχωριστούς χώρους με σαφείς ενδείξεις ή κατά τέτοιο τρόπο ώστε να ελαχιστοποιείται η επιμόλυνση. | F86: 0 | G86: 9 | I86: 18 | K86: 0
A87: 30 | B87: Για τρόφιμα που αποθηκεύονται σε θαλάμους ψύξης και κατάψυξης διατηρείται η ψυκτική αλυσίδα και προϊόντα ευαίσθητα στην θερμότητα, υγρασία ή στο φως φυλάσσονται σε κατάλληλες συνθήκες. | F87: 0 | G87: 6 | I87: 12 | K87: 0
A88: 31 | B88: Οι πρώτες ύλες και τα τελικά προϊόντα χρησιμοποιούνται και διακινούνται με βάση την αρχή “First expired – first out”. | F88: 0 | G88: 6 | I88: 12 | K88: 0
A89: 32 | B89: Τα σακιά ή δοχεία στοιβάζονται σε ράφια ή παλέτες σε κατάλληλη απόσταση από τον τοίχο. | F89: 0 | G89: 6 | I89: 12 | K89: 0
A90: 33 | B90: Σε περίπτωση χρήσης ξύλινων παλετών, γίνεται τακτικός έλεγχος για φθορές. | F90: 0 | G90: 3 | I90: 6 | K90: 0
A91: 34 | B91: Σε περίπτωση που οι δεύτερες συσκευασίες αφαιρεθούν πριν από την είσοδο της πρώτης ύλης στο χώρο παραγωγής, φυλάσσονται οι επισημάνσεις μέχρι εξάντλησης του αποθέματος. | F91: 0 | G91: 6 | I91: 12 | K91: 0
A92: 35 | B92: Οι συσκευασίες μερικώς χρησιμοποιημένων πρώτων υλών καλύπτονται πλήρως ή το περιεχόμενό τους μεταφέρεται σε δοχείο με κάλυμμα. | F92: 0 | G92: 6 | I92: 12 | K92: 0
A93: Γ | B93: ΠΑΡΑΓΩΓΙΚΗ ΔΙΑΔΙΚΑΣΙΑ | F93: ΝΑΙ (Συμμόρφωση) | G93: ΜΕΡΙΚΗ ΣΥΜΜΟΡΦΩΣΗ | I93: ΟΧΙ (μη συμμόρφωση) | K93: Δεν εφαρμόζεται | M93: ΒΑΘΜΟΛΟΓΙΑ
A94: 36 | B94: Λαμβάνονται επαρκή μέτρα για την προστασία των προϊόντων από ξένα σώματα. | F94: 0 | G94: 9 | I94: 18 | K94: 0
A95: 37 | B95: Πλύσιμο φρούτων, αν είναι αναγκαίο. | F95: 0 | G95: 6 | I95: 12 | K95: 0
A96: 38 | B96: Ορθές πρακτικές απόψυξης κατεψυγμένων πρώτων υλών και μη επανακατάψυξη. | F96: 0 | G96: 6 | I96: 12 | K96: 0
A97: 39 | B97: Οι χρόνοι και θερμοκρασίες επεξεργασίας επιτυγχάνονται, διατηρούνται και ελέγχονται αποτελεσματικά, όπου αυτό είναι κρίσιμο για την ασφάλεια του προϊόντος. | F97: 0 | G97: 9 | I97: 18 | K97: 0
A98: 40 | B98: Τα ψημένα προϊόντα και ιδίως αυτά που επιτρέπουν την ανάπτυξη μικροοργανισμών ψύχονται όσο το δυνατόν πιο γρήγορα σε καθαρό περιβάλλον. | F98: 0 | G98: 6 | I98: 12 | K98: 0
A99: 41 | B99: Τα λίπη/έλαια τηγανίσματος αντικαθίστανται κατόπιν προκαθορισμένων χρήσεων ή περιοδικού ελέγχου. | F99: 0 | G99: 3 | I99: 6 | K99: 0
A100: 42 | B100: Προϊόντα που περιέχουν μη αλλεργιογόνα συστατικά παράγονται πριν από τα προϊόντα που περιέχουν αλλεργιογόνα και μεταξύ των παραγωγών παρεμβάλλονται εργασίες καθαρισμού, ή εναλλακτικά η παραγωγή τους γίνεται σε ξεχωριστές γραμμές. | F100: 0 | G100: 9 | I100: 18 | K100: 0
A101: 43 | B101: Η κυκλοφορία πρώτων υλών, υλικών συσκευασίας και προσωπικού ακολουθεί τη ροή από χώρους χρήσης μη αλλεργιογόνων συστατικών σε χώρους χρήσης αλλεργιογόνων. | F101: 0 | G101: 9 | I101: 18 | K101: 0
A102: 44 | B102: Χρήση ξεχωριστών περιεκτών και σκευών, κατά προτίμηση με έγχρωμη κωδικοποίηση, για τη διαχείριση πρώτων υλών υψηλού κινδύνου. | F102: 0 | G102: 9 | I102: 18 | K102: 0
A103: Δ | B103: ΣΥΣΚΕΥΑΣΙΑ / ΑΝΑΣΥΣΚΕΥΑΣΙΑ | F103: ΝΑΙ (Συμμόρφωση) | G103: ΜΕΡΙΚΗ ΣΥΜΜΟΡΦΩΣΗ | I103: ΟΧΙ (μη συμμόρφωση) | K103: Δεν εφαρμόζεται | M103: ΒΑΘΜΟΛΟΓΙΑ
A104: 45 | B104: Η θερμοκρασία των προϊόντων κατά τη διάρκεια της συσκευασίας είναι χαμηλότερη από τη θερμοκρασία του χώρου. | F104: 0 | G104: 6 | I104: 12 | K104: 0
A105: Ε | B105: ΔΙΑΝΟΜΗ ΠΡΟΪΟΝΤΩΝ | F105: ΝΑΙ (Συμμόρφωση) | G105: ΜΕΡΙΚΗ ΣΥΜΜΟΡΦΩΣΗ | I105: ΟΧΙ (μη συμμόρφωση) | K105: Δεν εφαρμόζεται | M105: ΒΑΘΜΟΛΟΓΙΑ
A106: 46 | B106: Η εσωτερική επιφάνεια των οχημάτων μεταφοράς καθαρίζεται αποτελεσματικά και συντηρείται επαρκώς. | F106: 0 | G106: 6 | I106: 12 | K106: 0
A107: 47 | B107: Εφ’ όσον απαιτείται, τα οχήματα μεταφοράς επιτυγχάνουν και διατηρούν συνθήκες ψύξης, κατάψυξης και διαθέτουν σύστημα καταγραφής θερμοκρασίας. | F107: 0 | G107: 6 | I107: 12 | K107: 0
A108: 48 | B108: Αν είναι απαραίτητο, τα μέσα διανομής επιτρέπουν τον διαχωρισμό των διαφόρων τροφίμων για αποτροπή διασταυρούμενης μόλυνσης. | F108: 0 | G108: 6 | I108: 12 | K108: 0
B109: ΣΥΝΟΛΟ ΚΕΦΑΛΑΙΟΥ 3 | I109: =SUM(I84:J108) -> 282 | M109: =SUM(M84:O108) -> 0
I110: 0.7 | K110: 0.399 | M110: =IF(M109>=I111,"HIGH RISK",IF(M109<=K111,"LOW RISK","MEDIUM RISK")) -> LOW RISK
I111: =70%*I109 -> 197.4 | K111: =39.9%*I109 -> 112.518
A112: ΚΕΦΑΛΑΙΟ 4: ΓΕΝΙΚΕΣ ΑΠΑΙΤΗΣΕΙΣ ΥΓΙΕΙΝΗΣ
A113: Α | B113: ΓΕΝΙΚΕΣ ΑΠΑΙΤΗΣΕΙΣ ΚΤΙΡΙΑΚΩΝ ΥΠΟΔΟΜΩΝ | F113: ΝΑΙ (Συμμόρφωση) | G113: ΜΕΡΙΚΗ ΣΥΜΜΟΡΦΩΣΗ | I113: ΟΧΙ (μη συμμόρφωση) | K113: Δεν εφαρμόζεται | M113: ΒΑΘΜΟΛΟΓΙΑ
B114: Εξωτερικό περιβάλλον
A115: 49 | B115: Ο χώρος γύρω από την εγκατάσταση διατηρείται καθαρός. | F115: 0 | G115: 6 | I115: 12 | K115: 0
B116: Σχεδιασμός-Κατασκευή χώρων
A117: 50 | B117: Όλοι οι χώροι σχεδιάζονται κατά τέτοιο τρόπο και κατασκευάζονται από υλικό που επιτρέπει εύκολη συντήρηση και καθαρισμό. | F117: 0 | G117: 6 | I117: 12 | K117: 0
A118: 51 | B118: Το μέγεθος των εγκαταστάσεων παρέχει αρκετό χώρο στους εργαζομένους που αποτρέπει τη διασταυρούμενη μόλυνση κατά την εκτέλεση των καθηκόντων τους. | F118: 0 | G118: 6 | I118: 12 | K118: 0
A119: B | B119: ΓΕΝΙΚΑ ΧΑΡΑΚΤΗΡΙΣΤΙΚΑ ΧΩΡΩΝ | F119: ΝΑΙ (Συμμόρφωση) | G119: ΜΕΡΙΚΗ ΣΥΜΜΟΡΦΩΣΗ | I119: ΟΧΙ (μη συμμόρφωση) | K119: Δεν εφαρμόζεται | M119: ΒΑΘΜΟΛΟΓΙΑ
A120: 52 | B120: Οι τοίχοι και οι οροφές καθαρίζονται περιοδικά. | F120: 0 | G120: 6 | I120: 12 | K120: 0
A121: 53 | B121: Οι πόρτες είναι καθαρές και στεγανοποιημένες και, αν χρειάζεται, εφοδιασμένες με αεροκουρτίνες ή λωριδοκουρτίνες PVC. | F121: 0 | G121: 6 | I121: 12 | K121: 0
A122: 54 | B122: Τα δάπεδα διατηρούνται σε καλή κατάσταση. | F122: 0 | G122: 6 | I122: 12 | K122: 0
A123: 55 | B123: Τα παράθυρα και ανοίγματα διαθέτουν συρμάτινο πλέγμα προστασίας από έντομα, το οποίο αφαιρείται εύκολα για καθαρισμό. | F123: 0 | G123: 6 | I123: 12 | K123: 0
A124: 56 | B124: Οι ηλεκτρικές εντομοπαγίδες ή κολλητικές ταινίες, όταν χρησιμοποιούνται, τοποθετούνται μακριά από οποιαδήποτε περιοχή προετοιμασίας και χειρισμού τροφίμων και από έντονα ρεύματα αέρα. | F124: 0 | G124: 6 | I124: 12 | K124: 0
A125: 57 | B125: Οι χώροι, οι κλίβανοι έψησης, και οι θάλαμοι ψύξης και κατάψυξης είναι επαρκώς φωτισμένοι. | F125: 0 | G125: 3 | I125: 6 | K125: 0
A126: 58 | B126: Το σύστημα εξαερισμού δεν επιτρέπει ροή αέρα από μολυσμένες περιοχές σε καθαρές, οι δε χώροι αερίζονται επαρκώς. | F126: 0 | G126: 6 | I126: 12 | K126: 0
A127: 59 | B127: Υπάρχουν επαρκείς αποχετευτικές εγκαταστάσεις με σιφώνια εφοδιασμένα με δικτυωτά πλέγματα προστασίας. | F127: 0 | G127: 6 | I127: 12 | K127: 0
A128: Γ | B128: ΕΞΟΠΛΙΣΜΟΣ | F128: ΝΑΙ (Συμμόρφωση) | G128: ΜΕΡΙΚΗ ΣΥΜΜΟΡΦΩΣΗ | I128: ΟΧΙ (μη συμμόρφωση) | K128: Δεν εφαρμόζεται | M128: ΒΑΘΜΟΛΟΓΙΑ
A129: 60 | B129: Ο εξοπλισμός, συμπεριλαμβανομένων των παλετοδεξαμενών και σιλό είναι κατασκευασμένος από υλικά κατάλληλα για τρόφιμα και διατηρείται καθαρός και σε καλή κατάσταση. | F129: 0 | G129: 6 | I129: 12 | K129: 0
A130: 61 | B130: Οι επιφάνειες επαφής με τα τρόφιμα είναι κατασκευασμένες από υλικό που επιτρέπει τον εύκολο καθαρισμό και απολύμανσή τους. | F130: 0 | G130: 6 | I130: 12 | K130: 0
A131: 62 | B131: Τα υλικά που χρησιμοποιούνται για λίπανση των σκευών που έρχονται σε επαφή με τρόφιμα είναι κατάλληλα για τη χρήση αυτή (food grade). | F131: 0 | G131: 3 | I131: 6 | K131: 0
A132: 63 | B132: Για τον απαιτούμενο έλεγχο της θερμοκρασίας, χρησιμοποιούνται θερμόμετρα ή καταγραφικά με συναγερμό που τοποθετούνται σε αντιπροσωπευτικά σημεία. | F132: 0 | G132: 6 | I132: 12 | K132: 0
A133: 64 | B133: Όπου είναι αναγκαίο, υπάρχει μονάδα κλιματισμού για τη ρύθμιση της θερμοκρασίας ή σχετικής υγρασίας. | F133: 0 | G133: 6 | I133: 12 | K133: 0
A134: 65 | B134: Οι εγκαταστάσεις για τον καθαρισμό του εξοπλισμού και των σκευών είναι από κατάλληλο υλικό, έχουν επαρκές μέγεθος, τροφοδοσία ζεστού – κρύου νερού και διατηρούνται καθαρές και σε καλή κατάσταση. | F134: 0 | G134: 6 | I134: 12 | K134: 0
A135: 66 | B135: Το πλύσιμο του εξοπλισμού ή των σκευών στην ανωτέρω εγκατάσταση γίνεται είτε σε διαφορετικό χρόνο από το πλύσιμο των πρώτων υλών είτε σε ξεχωριστές εγκαταστάσεις. | F135: 0 | G135: 6 | I135: 12 | K135: 0
A136: 67 | B136: Τα πλυμένα σκεύη και ο εξοπλισμός αποθηκεύονται σε καθαρό χώρο και προστατεύονται από μολύνσεις. | F136: 0 | G136: 6 | I136: 12 | K136: 0
A137: Δ | B137: ΧΩΡΟΙ ΥΓΙΕΙΝΗΣ ΠΡΟΣΩΠΙΚΟΥ & ΑΠΟΔΥΤΗΡΙΑ | F137: ΝΑΙ (Συμμόρφωση) | G137: ΜΕΡΙΚΗ ΣΥΜΜΟΡΦΩΣΗ | I137: ΟΧΙ (μη συμμόρφωση) | K137: Δεν εφαρμόζεται | M137: ΒΑΘΜΟΛΟΓΙΑ
A138: 68 | B138: Υπάρχει επαρκής αριθμός αποχωρητηρίων. | F138: 0 | G138: 3 | I138: 6 | K138: 0
A139: 69 | B139: Υπάρχουν εγκαταστάσεις πλύσης χεριών. | F139: 0 | G139: 6 | I139: 12 | K139: 0
A140: 70 | B140: Πριν από την είσοδο στο χώρο παραγωγής, υπάρχει σύστημα καθαρισμού του πέλματος των υποδημάτων. | F140: 0 | G140: 3 | I140: 6 | K140: 0
A141: 71 | B141: Υπάρχουν αποδυτήρια με επαρκή αριθμό ιματιοφυλακίων. | F141: 0 | G141: 3 | I141: 6 | K141: 0
A142: Ε | B142: ΥΓΙΕΙΝΗ ΠΡΟΣΩΠΙΚΟΥ & ΠΡΑΚΤΙΚΕΣ ΧΕΙΡΙΣΜΟΥ | F142: ΝΑΙ (Συμμόρφωση) | G142: ΜΕΡΙΚΗ ΣΥΜΜΟΡΦΩΣΗ | I142: ΟΧΙ (μη συμμόρφωση) | K142: Δεν εφαρμόζεται | M142: ΒΑΘΜΟΛΟΓΙΑ
A143: 72 | B143: Βεβαιώσεις υγείας των χειριστών τροφίμων ή υλικών συσκευασίας. | F143: 0 | G143: 3 | I143: 6 | K143: 0
A144: 73 | B144: Υπάρχει γραπτή οδηγία απαγόρευσης χειρισμού τροφίμων ή υλικών συσκευασίας από εργαζόμενους που νοσούν ή φέρουν τραύματα ή δερματικές μολύνσεις. | F144: 0 | G144: 3 | I144: 6 | K144: 0
A145: 74 | B145: Υπάρχει γραπτή οδηγία ορθών πρακτικών χειρισμού τροφίμων ή υλικών συσκευασίας και αποφυγής μη ορθών προσωπικών πρακτικών. | F145: 0 | G145: 6 | I145: 12 | K145: 0
A146: ΣΤ | B146: ΣΥΝΤΗΡΗΣΗ ΕΞΟΠΛΙΣΜΟΥ / ΔΙΑΚΡΙΒΩΣΗ ΟΡΓΑΝΩΝ ΜΕΤΡΗΣΗΣ | F146: ΝΑΙ (Συμμόρφωση) | G146: ΜΕΡΙΚΗ ΣΥΜΜΟΡΦΩΣΗ | I146: ΟΧΙ (μη συμμόρφωση) | K146: Δεν εφαρμόζεται | M146: ΒΑΘΜΟΛΟΓΙΑ
A147: 75 | B147: Ο εξοπλισμός, τα εργαλεία και τα μηχανήματα επισκευάζονται και συντηρούνται σε προκαθορισμένα διαστήματα ή προληπτικά σύμφωνα με τις οδηγίες του κατασκευαστή και υπάρχει σχετική τεκμηρίωση. | F147: 0 | G147: 6 | I147: 12 | K147: 0
A148: 76 | B148: Γίνεται, σε προκαθορισμένο χρονικό διάστημα, βαθμονόμηση και διακρίβωση οργάνων και υπάρχει σχετική τεκμηρίωση. | F148: 0 | G148: 6 | I148: 12 | K148: 0
B149: ΣΥΝΟΛΟ ΚΕΦΑΛΑΙΟΥ 4 | I149: =SUM(I114:J148) -> 294 | M149: =SUM(M114:O148) -> 0
I150: 0.7 | K150: 0.399 | M150: =IF(M149>=I151,"HIGH RISK",IF(M149<=K151,"LOW RISK","MEDIUM RISK")) -> LOW RISK
I151: =70%*I149 -> 205.8 | K151: =39.9%*I149 -> 117.306
A152: ΚΕΦΑΛΑΙΟ 5: ΕΦΑΡΜΟΓΗ ΛΟΙΠΩΝ ΑΠΑΙΤΗΣΕΩΝ
A153: Α | B153: ΔΙΑΧΕΙΡΙΣΗ ΑΠΟΡΡΙΜΑΤΩΝ ΚΑΙ ΑΛΛΩΝ ΑΝΤΙΚΕΙΜΕΝΩΝ | F153: ΝΑΙ (Συμμόρφωση) | G153: ΜΕΡΙΚΗ ΣΥΜΜΟΡΦΩΣΗ | I153: ΟΧΙ (μη συμμόρφωση) | K153: Δεν εφαρμόζεται | M153: ΒΑΘΜΟΛΟΓΙΑ
A154: 77 | B154: Απομάκρυνση άδειων συσκευασιών, απορριμμάτων και υπολειμμάτων τροφίμων το ταχύτερο δυνατό από τις εγκαταστάσεις της επιχείρησης. | F154: 0 | G154: 6 | I154: 12 | K154: 0
A155: 78 | B155: Τα απορρίμματα τοποθετούνται σε δοχεία καλυμμένα και στεγανά, όσο το δυνατόν μακριά από το κτίριο. | F155: 0 | G155: 3 | I155: 6 | K155: 0
A156: 79 | B156: Μη χρησιμοποιούμενα αντικείμενα, εξοπλισμός και παρόμοια ανεπιθύμητα υλικά απομακρύνονται από τους χώρους παραγωγής και αποθήκευσης. | F156: 0 | G156: 3 | I156: 6 | K156: 0
A157: Β | B157: ΧΡΗΣΗ ΠΑΡΑΓΟΝΤΩΝ ΒΕΛΤΙΩΣΗΣ (ΠΡΟΣΘΕΤΑ & ΑΡΩΜΑΤΙΚΕΣ ΥΛΕΣ) | F157: ΝΑΙ (Συμμόρφωση) | G157: ΜΕΡΙΚΗ ΣΥΜΜΟΡΦΩΣΗ | I157: ΟΧΙ (μη συμμόρφωση) | K157: Δεν εφαρμόζεται | M157: ΒΑΘΜΟΛΟΓΙΑ
A158: 80 | B158: Χρήση εγκεκριμένων ή μη προσθέτων για τη συγκεκριμένη κατηγορία τροφίμου. | F158: 0 | G158: 6 | I158: 12 | K158: 0
A159: 81 | B159: Τήρηση κριτηρίων καθαρότητας και προδιαγραφών εγκεκριμένων προσθέτων για τη συγκεκριμένη κατηγορία τροφίμου. | F159: 0 | G159: 6 | I159: 12 | K159: 0
A160: 82 | B160: Επίπεδα χρήσης εγκεκριμένων προσθέτων για τη συγκεκριμένη κατηγορία τροφίμου. | F160: 0 | G160: 6 | I160: 12 | K160: 0
A161: 83 | B161: Η επιχείρηση λαμβάνει μέτρα που εξασφαλίζουν την μη υπέρβαση των μέγιστων επιτρεπόμενων ποσοστών προσθέτων. | F161: 0 | G161: 6 | I161: 12 | K161: 0
A162: 84 | B162: H επιχείρηση διενεργεί εργαστηριακές αναλύσεις για πρόσθετα με προκαθορισμένη συχνότητα, κατά προτίμηση, σε διαπιστευμένο εργαστήριο με διαπιστευμένη μέθοδο. | F162: 0 | G162: 3 | I162: 6 | K162: 0
A163: 85 | B163: Η επισήμανση των προσθέτων περιλαμβάνει, επιπλέον της ονομασίας της κατηγορίας που αντιστοιχεί στην κύρια λειτουργία του προσθέτου στο προϊόν, και την ονομασία ή τον αριθμό Ε του προσθέτου. | F163: 0 | G163: 6 | I163: 12 | K163: 0
A164: 86 | B164: Στις κατηγορίες τροφίμων που εφαρμόζεται η αρχή της μεταφοράς και εφ’ όσον το πρόσθετο, που περιέχεται σε ένα συστατικό, έχει τεχνολογική λειτουργία στο τελικό τρόφιμο, αναγράφεται στην επισήμανση. | F164: 0 | G164: 6 | I164: 12 | K164: 0
A165: 87 | B165: Το διοξείδιο του θείου και τα θειώδη (E220 – E228) σε συγκεντρώσεις >10 ppm εκπεφρασμένα ως SO2, αναγράφονται ως αλλεργιογόνα με σαφή αναφορά της ονομασίας τους και με σαφή διάκριση. | F165: 0 | G165: 9 | I165: 18 | K165: 0
A166: 88 | B166: Για τις χρωστικές Ε102, Ε104, Ε110, Ε122, Ε124 και Ε129 αναγράφεται: Ονομασία ή αριθμός Ε της χρωστικής (-ών) “μπορεί να έχει επιβλαβή συνέπεια στη δραστηριότητα και προσοχή στα παιδιά”. | F166: 0 | G166: 6 | I166: 12 | K166: 0
A167: 89 | B167: Για τα προϊόντα που περιέχουν γλυκαντικά (Ε420, Ε421, Ε950 – Ε969) προβλέπονται διαφορετικές ενδείξεις κατά περίπτωση. | F167: 0 | G167: 6 | I167: 12 | K167: 0
A168: 90 | B168: Για τα προϊόντα που περιέχουν γλυκυρριζικό οξύ ή το μετά αμμωνίου άλας του, προβλέπονται διαφορετικές ενδείξεις ανάλογα με τη συγκέντρωσή τους. | F168: 0 | G168: 6 | I168: 12 | K168: 0
A169: Γ | B169: ΥΛΙΚΑ & ΑΝΤΙΚΕΙΜΕΝΑ ΣΕ ΕΠΑΦΗ ΜΕ ΤΡΟΦΙΜΑ | F169: ΝΑΙ (Συμμόρφωση) | G169: ΜΕΡΙΚΗ ΣΥΜΜΟΡΦΩΣΗ | I169: ΟΧΙ (μη συμμόρφωση) | K169: Δεν εφαρμόζεται | M169: ΒΑΘΜΟΛΟΓΙΑ
A170: 91 | B170: Τα υλικά συσκευασίας, τα σκεύη και τα δοχεία που έρχονται σε επαφή με τρόφιμα είναι κατάλληλα για τη χρήση για την οποία προορίζονται και φυλάσσονται υπό υγιεινές συνθήκες. | F170: 0 | G170: 6 | I170: 12 | K170: 0
A171: 92 | B171: Γίνεται έλεγχος συνοδευτικών πιστοποιητικών κατά την παραλαβή των υλικών συσκευασίας. | F171: 0 | G171: 3 | I171: 6 | K171: 0
A172: 93 | B172: Πληρούνται από την επιχείρηση οι γενικές απαιτήσεις ιχνηλασιμότητας για τα υλικά συσκευασίας. | F172: 0 | G172: 3 | I172: 6 | K172: 0
A173: 94 | B173: Τεκμηρίωση εφαρμογής συστήματος ιχνηλασιμότητας. | F173: 0 | G173: 3 | I173: 6 | K173: 0
A174: Δ | B174: ΕΠΙΣΗΜΑΝΣΗ | F174: ΝΑΙ (Συμμόρφωση) | G174: ΜΕΡΙΚΗ ΣΥΜΜΟΡΦΩΣΗ | I174: ΟΧΙ (μη συμμόρφωση) | K174: Δεν εφαρμόζεται | M174: ΒΑΘΜΟΛΟΓΙΑ
A175: 95 | B175: Ονομασία τροφίμου (όχι εμπορικό σήμα). | F175: 0 | G175: 6 | I175: 12 | K175: 0
A176: 96 | B176: Κατάλογος συστατικών. | F176: 0 | G176: 6 | I176: 12 | K176: 0
A177: 97 | B177: Επισήμανση συστατικών που προκαλούν αλλεργίες ή δυσανεξίες. | F177: 0 | G177: 9 | I177: 18 | K177: 0
A178: 98 | B178: Όταν απαιτείται, δήλωση ποσότητας ορισμένων συστατικών ή κατηγοριών συστατικών (Quantitative Ingredient Declaration – QUID). | F178: 0 | G178: 6 | I178: 12 | K178: 0
A179: 99 | B179: Καθαρή ποσότητα τροφίμου που περιέχεται στη συσκευασία. | F179: 0 | G179: 3 | I179: 6 | K179: 0
A180: 100 | B180: Ημερομηνία ελάχιστης διατηρησιμότητας ή τελική ημερομηνία ανάλωσης. | F180: 0 | G180: 6 | I180: 12 | K180: 0
A181: 101 | B181: Τυχόν ιδιαίτερες συνθήκες αποθήκευσης ή/και συνθήκες χρήσης. | F181: 0 | G181: 6 | I181: 12 | K181: 0
A182: 102 | B182: Όνομα ή εμπορική επωνυμία & δ/νση υπεύθυνου επιχείρησης τροφίμων. | F182: 0 | G182: 6 | I182: 12 | K182: 0
A183: 103 | B183: Εφ’ όσον είναι αναγκαίο, οδηγίες χρήσης του προϊόντος. | F183: 0 | G183: 3 | I183: 6 | K183: 0
A184: 104 | B184: Διατροφική δήλωση. | F184: 0 | G184: 6 | I184: 12 | K184: 0
A185: 105 | B185: Πρόσθετη ένδειξη για τα τρόφιμα που είναι συσκευασμένα σε προστατευτική ατμόσφαιρα. | F185: 0 | G185: 3 | I185: 6 | K185: 0
A186: 106 | B186: Αναγνωσιμότητα επισήμανσης (π.χ. κατάλληλο μέγεθος γραμματοσειράς). | F186: 0 | G186: 3 | I186: 6 | K186: 0
B188: ΣΥΝΟΛΟ ΚΕΦΑΛΑΙΟΥ 5 | I188: =SUM(I154:J186) -> 312 | M188: =SUM(M154:O187) -> 0
I189: 0.7 | K189: 0.399 | M189: =IF(M188>=I190,"HIGH RISK",IF(M188<=K190,"LOW RISK","MEDIUM RISK")) -> LOW RISK
I190: =70%*I188 -> 218.4 | K190: =39.9%*I188 -> 124.488
A191: ΚΑΝΟΝΑΣ ΒΑΘΜΟΛΟΓΗΣΗΣ
A192: Κάθε κεφάλαιο έχει έναν συγκεκριμένο αριθμό βαθμών οι οποίοι αξιολογούνται με βάση την αρχή:
A193: Χαμηλή συμμόρφωση: 70% ή περισσότερο από το σύνολο της βαθμολογίας των μη συμμορφώσεων
A194: Μέση συμμόρφωση: 40% - 69,9% από το σύνολο της βαθμολογίας των μη συμμορφώσεων
A195: Υψηλή συμμόρφωση: 0 - 39,9% από το σύνολο της βαθμολογίας των μη συμμορφώσεων
A196: Αξιολόγηση συνολικού κινδύνου του εντύπου ελέγχου (στο σύνολο των κεφαλαίων)
A197: ΣΥΝΟΛΟ ΚΕΦΑΛΑΙΩΝ = 5 | K197: ΣΥΝΟΛΟ ΚΕΦΑΛΑΙΟΥ 1 | O197: =M70 -> LOW RISK
A198: 30% του συνόλου = 2 κεφάλαια | E198: 20% του συνόλου = 1 κεφάλαιo | K198: ΣΥΝΟΛΟ ΚΕΦΑΛΑΙΟΥ 2 | O198: =M80 -> LOW RISK
A199: Χαμηλού Κινδύνου: | K199: ΣΥΝΟΛΟ ΚΕΦΑΛΑΙΟΥ 3 | O199: =M110 -> LOW RISK
A200: Από τα 5 κεφάλαια, κανένα κεφάλαιο χαμηλής συμμόρφωσης και μέχρι 1 (<30%) κεφάλαιο μέσης συμμόρφωσης | K200: ΣΥΝΟΛΟ ΚΕΦΑΛΑΙΟΥ 4 | O200: =M150 -> LOW RISK
A201: Μεσαίου κινδύνου: | K201: ΣΥΝΟΛΟ ΚΕΦΑΛΑΙΟΥ 5 | O201: =M189 -> LOW RISK
A202: α. Από τα 5 κεφάλαια, κανένα κεφάλαιο χαμηλής συμμόρφωσης και τουλάχιστον 2 (≥30%) κεφάλαια μέσης συμμόρφωσης
A203: β. Από τα 5 κεφάλαια, 1 κεφάλαιο (≤20%) χαμηλής συμμόρφωσης
A204: Υψηλού Κινδύνου:
A205: Aπό τα 5 κεφάλαια, τουλάχιστον 2 (≥30%) κεφάλαια χαμηλής συμμόρφωσης
A206: Η επιχείρηση κρίνεται με την παρούσα ως:
A207: ΥΨΗΛΟΥ ΚΙΝΔΥΝΟΥ | G207: ΜΕΣΑΙΟΥ ΚΙΝΔΥΝΟΥ | L207: ΧΑΜΗΛΟΥ ΚΙΝΔΥΝΟΥ
A210: ΓΕΝΙΚΑ ΣΧΟΛΙΑ – ΣΥΜΠΕΡΑΣΜΑΤΑ – ΣΥΣΤΑΣΕΙΣ
... 12 more rows
